fUST/lending_fUST_20251023
["ID","MTS","AMOUNT","RATE_DAILY","PERIOD"]
[392138887,1761203456094,-826.061307,0.000439,120]
[392138888,1761203456104,-496.984612,0.000439,120]
[392138889,1761203456113,-496.984612,0.000439,120]
[392138890,1761203456123,-496.984612,0.000439,120]
[392138891,1761203456133,-496.984613,0.000439,120]
[392138892,1761203456142,-173.899356,0.000439,120]
[392138893,1761203456152,-173.899356,0.000439,120]
[392138894,1761203456165,-173.899356,0.000439,120]
[392138895,1761203456174,-173.899346,0.000439,120]
[392138896,1761203456183,-151.0,0.000439,120]
[392138897,1761203456194,-151.0,0.000439,120]
[392138898,1761203456204,-151.0,0.000439,120]
[392138899,1761203456213,-151.0,0.000439,120]
[392138900,1761203456222,-151.0,0.000439,120]
[392138901,1761203456232,-151.0,0.000439,120]
[392138902,1761203456242,-151.0,0.000439,120]
[392138903,1761203456252,-1000.0,0.00043964,7]
[392138904,1761203456262,-160.41641818,0.00043987,90]
[392138905,1761203456272,-500.0,0.00043992,60]
[392138906,1761203456281,-150.0,0.00044,120]
[392138907,1761203456291,-1144.19,0.00044,14]
[392138908,1761203456300,-403.24192968,0.00044,120]
[392138909,1761203456310,-500.0,0.00044109,120]
[392138910,1761203456320,-1072.35,0.00044109,120]
[392138911,1761203456332,-2330.71,0.00044109,3]
[392138912,1761203456341,-531.88,0.00044109,120]
[392138913,1761203456351,-5674.92,0.00044109,120]
[392138914,1761203456360,-500.0,0.00044109,120]
[392138915,1761203456369,-547.39,0.00044109,2]
[392138916,1761203456379,-730.79,0.00044109,120]
[392138917,1761203456388,-1000.0,0.00044238,7]
[392138918,1761203456398,-4220.77395092,0.000443,30]
[392138919,1761203527715,188.0,0.00024,120]
[392138920,1761203599981,6388.55198002,0.0003527,120]
[392138921,1761203625947,199.544773,0.00030137,120]
[392138922,1761203658444,150.0,0.00020611,2]
[392138923,1761203658863,286.1,0.00021592,2]
[392138924,1761203659288,429.15,0.00022574,2]
[392138925,1761203659694,572.2,0.00023555,2]
[392138926,1761203660111,715.25,0.00024537,2]
[392138927,1761203737013,150.0,0.00020892,2]
[392138928,1761203737472,231.3,0.00021886,2]
[392138929,1761203737903,346.95,0.00022881,2]
[392138930,1761203738330,462.61,0.00023876,2]
[392138931,1761203738841,578.26,0.00024871,2]
[392138934,1761203817061,150.0,0.00020885,2]
[392138935,1761203817589,186.27,0.00021879,2]
[392138936,1761203817999,279.41,0.00022874,2]
[392138937,1761203818408,372.54,0.00023869,2]
[392138938,1761203818822,465.68,0.00024863,2]
[392138939,1761203842972,4624.29,0.00025205,2]
[392138940,1761203843509,-375.71,0.00025205,2]
[392138941,1761203858817,537.52865409,0.00025205,2]
[392138942,1761203873764,161.30040805,0.00035334,30]
[392138943,1761203895213,150.0,0.00020912,2]
[392138944,1761203895710,150.0,0.00021908,2]
[392138945,1761203896742,223.89,0.00022904,2]
[392138946,1761203897127,298.52,0.000239,2]
[392138947,1761203972205,150.0,0.00020852,2]
[392138948,1761203972624,150.0,0.00021845,2]
[392138949,1761203973093,192.49,0.00022838,2]
[392138950,1761203973521,256.66,0.00023831,2]
[392138951,1761204046914,150.0,0.00020912,2]
[392138952,1761204047327,150.0,0.00021908,2]
[392138953,1761204047788,163.89,0.00022904,2]
[392138954,1761204048275,218.52,0.000239,2]
[392138955,1761204123776,150.0,0.00020303,2]
[392138956,1761204124393,150.0,0.00021269,2]
[392138957,1761204124865,150.0,0.00022236,2]
[392138958,1761204125316,183.78,0.00023203,2]
[392138959,1761204128514,150.0,0.00017416,30]
[392138960,1761204128958,150.0,0.00018245,30]
[392138961,1761204129518,150.0,0.00019074,30]
[392138962,1761204129930,150.0,0.00019904,30]
[392138963,1761204130399,150.0,0.00020733,30]
[392138964,1761204130824,150.0,0.00021562,30]
[392138965,1761204198104,150.0,0.00020438,2]
[392138966,1761204198538,150.0,0.00021411,2]
[392138967,1761204199023,150.0,0.00022385,2]
[392138968,1761204199438,150.0,0.00023358,2]
[392138969,1761204205203,417.15472785,0.0002415,5]
[392138970,1761204270243,150.0,0.00020367,2]
[392138971,1761204270698,150.0,0.00021337,2]
[392138972,1761204271120,150.0,0.00022307,2]
[392138973,1761204271666,150.0,0.00023277,2]
[392138980,1761204340170,150.0,0.00020344,2]
[392138981,1761204340617,150.0,0.00021313,2]
[392138982,1761204341034,150.0,0.00022282,2]
[392138983,1761204341464,150.0,0.00023251,2]
[392138986,1761204371627,4283.76206163,0.0002415,5]
[392138991,1761204407571,150.0,0.00020431,2]
[392138992,1761204407978,150.0,0.00021404,2]
[392138993,1761204408397,150.0,0.00022376,2]
[392138994,1761204408909,156.44,0.00023349,2]
[392138996,1761204437804,908.6365908,0.00023093,10]
[392138997,1761204437838,908.6365908,0.00023324,10]
[392138998,1761204437873,908.6365908,0.00023555,10]
[392138999,1761204437928,450.19142728,0.00023786,12]
[392139001,1761204482547,150.0,0.00020316,2]
[392139002,1761204483110,150.0,0.00021283,2]
[392139003,1761204483516,150.0,0.0002225,2]
[392139004,1761204484037,150.0,0.00023218,2]
[392139007,1761204514376,6289.402606,0.00015,2]
[392139010,1761204520335,302.93474932,0.00021,2]
[392139017,1761204549019,496.24129188,0.00023102,10]
[392139019,1761204556296,150.0,0.00020828,2]
[392139020,1761204556700,150.0,0.0002182,2]
[392139021,1761204557104,150.0,0.00022812,2]
[392139022,1761204557512,150.0,0.00023804,2]
[392139023,1761204560552,150.0,0.00021369,30]
[392139035,1761204630728,150.0,0.0002067,2]
[392139036,1761204631183,150.0,0.00021654,2]
[392139037,1761204631609,150.0,0.00022638,2]
[392139038,1761204632053,150.0,0.00023623,2]
[392139059,1761204632724,-300.0,0.00024141,2]
[392139061,1761204632735,-300.0,0.00024141,2]
[392139063,1761204632746,-1200.0,0.00024141,2]
[392139065,1761204632757,-300.0,0.00024141,2]
[392139067,1761204632767,-300.0,0.00024141,2]
[392139069,1761204632778,-255.43731172,0.00024142,2]
[392139071,1761204632788,-565.22905474,0.00024142,2]
[392139074,1761204632802,-10955.5,0.00024142,2]
[392139076,1761204632817,-10791.70901644,0.00024142,2]
[392139078,1761204632828,-3012.2478852,0.0002427,2]
[392139080,1761204632838,-500.0,0.000244,2]
[392139082,1761204632849,-150.0,0.00024607,2]
[392139083,1761204632860,-43426.06536603,0.0002465,2]
[392139084,1761204632871,-555.0,0.00024963,10]
[392139085,1761204632882,-1200.0,0.00024971,2]
[392139086,1761204632893,-500.0,0.00024973,2]
[392139087,1761204633029,-350.41161654,0.00024973,2]
[392139088,1761204633042,-500.0,0.00024973,2]
[392139089,1761204633052,-500.0,0.00024973,2]
[392139090,1761204633062,-500.0,0.00024973,2]
[392139091,1761204633072,-501.7220939,0.00024973,2]
[392139092,1761204633082,-503.62918855,0.00024973,2]
[392139093,1761204633092,-500.0,0.00024973,2]
[392139094,1761204633102,-50000.0,0.00024973,2]
[392139095,1761204633112,-500.0,0.00024973,2]
[392139096,1761204633123,-500.0,0.00024973,2]
[392139097,1761204633132,-500.0,0.00024973,2]
[392139098,1761204633142,-500.0,0.00024973,2]
[392139099,1761204633152,-500.0,0.00024973,2]
[392139100,1761204633162,-500.0,0.00024973,2]
[392139101,1761204633171,-500.0,0.00024973,2]
[392139102,1761204633180,-500.0,0.00024973,2]
[392139103,1761204633190,-500.0,0.00024973,2]
[392139104,1761204633199,-500.0,0.00024973,2]
[392139105,1761204633208,-500.0,0.00024973,2]
[392139106,1761204633218,-500.0,0.00024973,2]
[392139107,1761204633229,-500.0,0.00024973,2]
[392139108,1761204633239,-500.88594843,0.00024973,2]
[392139109,1761204633248,-500.0,0.00024973,2]
[392139110,1761204633257,-500.0,0.00024973,2]
[392139111,1761204633267,-266.16824837,0.00024973,2]
[392139112,1761204633276,-500.0,0.00024973,2]
[392139113,1761204633285,-500.0,0.00024973,2]
[392139114,1761204633296,-500.0,0.00024973,2]
[392139115,1761204633305,-500.0,0.00024973,2]
[392139116,1761204633314,-500.0,0.00024973,2]
[392139117,1761204633323,-500.0,0.00024973,2]
[392139118,1761204633333,-502.24181845,0.00024973,2]
[392139119,1761204633342,-500.93078171,0.00024973,2]
[392139120,1761204633351,-500.0,0.00024973,2]
[392139121,1761204633361,-869.21,0.00024979,3]
[392139122,1761204633370,-287.34574197,0.00024989,2]
[392139123,1761204633380,-358.53685918,0.00024989,2]
[392139124,1761204633389,-500.0,0.00024989,2]
[392139125,1761204633398,-171.54365532,0.00024989,2]
[392139126,1761204633408,-500.0,0.00024989,2]
[392139127,1761204633417,-500.0,0.00024989,2]
[392139128,1761204633426,-500.0,0.00024989,2]
[392139129,1761204633435,-500.0,0.00024989,2]
[392139130,1761204633444,-500.0,0.00024989,2]
[392139131,1761204633453,-500.0,0.00024989,2]
[392139132,1761204633463,-500.0,0.00024989,2]
[392139133,1761204633472,-500.0,0.00024989,2]
[392139134,1761204633481,-500.0,0.00024989,2]
[392139135,1761204633491,-461.81977578,0.00024989,2]
[392139136,1761204633500,-500.0,0.00024989,2]
[392139137,1761204633509,-500.0,0.00024989,2]
[392139138,1761204633518,-500.0,0.00024989,2]
[392139139,1761204633528,-500.0,0.00024989,2]
[392139140,1761204633538,-500.0,0.00024989,2]
[392139141,1761204633547,-500.0,0.00024989,2]
[392139142,1761204633556,-500.0,0.00024989,2]
[392139143,1761204633566,-500.0,0.00024989,2]
[392139144,1761204633575,-500.0,0.00024989,2]
[392139145,1761204633584,-500.0,0.00024989,2]
[392139146,1761204633594,-500.0,0.00024989,2]
[392139147,1761204633604,-500.0,0.00024989,2]
[392139148,1761204633613,-500.0,0.00024989,2]
[392139149,1761204633623,-500.0,0.00024989,2]
[392139150,1761204633632,-500.0,0.00024989,2]
[392139151,1761204633641,-500.0,0.00024989,2]
[392139152,1761204633651,-500.0,0.00024989,2]
[392139153,1761204633660,-41331.40998076,0.0002499,2]
[392139165,1761204638579,-500.0,0.00024973,2]
[392139166,1761204638588,-500.0,0.00024973,2]
[392139167,1761204638598,-500.0,0.00024973,2]
[392139168,1761204638607,-1243.96,0.0002498,10]
[392139169,1761204638616,-19375.29018072,0.0002499,2]
[392139170,1761204638628,-39293.29983852,0.0002499,2]
[392139171,1761204638637,-579.46,0.0002499,3]
[392139172,1761204638646,-289.73,0.0002499,3]
[392139173,1761204638655,-49503.88568221,0.00025,2]
[392139174,1761204638665,-1000.0,0.00025,14]
[392139175,1761204638674,-450.74551891,0.00025,7]
[392139176,1761204638683,-18507.16362398,0.00025,3]
[392139178,1761204638693,-363.09185821,0.00025,2]
[392139180,1761204638702,-27641.75,0.00025,7]
[392139182,1761204638712,-455.80283635,0.00025115,2]
[392139184,1761204638721,-500.0,0.00025115,2]
[392139186,1761204638732,-275.77933005,0.00025115,2]
[392139188,1761204638742,-500.0,0.00025263,2]
[392139190,1761204638752,-7184.4667862,0.0002541,2]
[392139192,1761204638763,-618.73323009,0.00025496,2]
[392139194,1761204638773,-1000.0,0.000255,2]
[392139196,1761204638782,-2317.83,0.00025501,3]
[392139197,1761204638792,-1158.91,0.00025501,3]
[392139199,1761204638802,-68230.6773949,0.00025511,2]
[392139200,1761204638815,-1135.99647781,0.00025511,2]
[392139201,1761204638825,-1000.0,0.00025521,2]
[392139202,1761204638835,-1000.0,0.00025521,2]
[392139203,1761204638844,-1000.0,0.00025521,2]
[392139204,1761204638854,-504.36583134,0.00025521,2]
[392139205,1761204638864,-1000.0,0.00025521,2]
[392139206,1761204638874,-1005.86745556,0.00025521,2]
[392139207,1761204638883,-1000.0,0.00025521,2]
[392139208,1761204638893,-1109.47119373,0.00025521,2]
[392139209,1761204638903,-1000.0,0.00025521,2]
[392139210,1761204638913,-1000.0,0.00025521,2]
[392139211,1761204638923,-1000.0,0.00025521,2]
[392139212,1761204638933,-1014.59410422,0.00025521,2]
[392139213,1761204638943,-1000.0,0.00025521,2]
[392139214,1761204638953,-1000.0,0.00025521,2]
[392139215,1761204638963,-1000.0,0.00025521,2]
[392139216,1761204638973,-1000.0,0.00025521,2]
[392139217,1761204638984,-1000.0,0.00025521,2]
[392139218,1761204638994,-1000.0,0.00025521,2]
[392139219,1761204639004,-1000.0,0.00025521,2]
[392139220,1761204639014,-1000.0,0.00025521,2]
[392139221,1761204639024,-1000.0,0.00025521,2]
[392139222,1761204639035,-1000.0,0.00025521,2]
[392139223,1761204639044,-1000.0,0.00025521,2]
[392139224,1761204639056,-507.34803512,0.00025521,2]
[392139225,1761204639072,-1003.54479287,0.00025521,2]
[392139226,1761204639082,-894.96488103,0.00025521,2]
[392139227,1761204639092,-1000.0,0.00025521,2]
[392139228,1761204639102,-503.05602523,0.00025521,2]
[392139229,1761204639113,-1000.0,0.00025521,2]
[392139230,1761204639123,-1000.0,0.00025521,2]
[392139231,1761204639139,-500.0,0.00025537,2]
[392139232,1761204639149,-500.0,0.00025573,2]
[392139233,1761204639159,-560.00262686,0.00025573,2]
[392139234,1761204639168,-501.74554836,0.00025573,2]
[392139235,1761204639178,-500.0,0.00025573,2]
[392139236,1761204639187,-235.51278415,0.00025573,2]
[392139237,1761204639197,-500.0,0.00025573,2]
[392139238,1761204639207,-500.0,0.00025573,2]
[392139239,1761204639216,-500.0,0.00025573,2]
[392139240,1761204639226,-500.0,0.00025573,2]
[392139241,1761204639236,-194.45326006,0.00025573,2]
[392139242,1761204639245,-500.48948243,0.00025573,2]
[392139243,1761204639254,-500.0,0.00025573,2]
[392139244,1761204639265,-500.0,0.00025573,2]
[392139245,1761204639275,-500.0,0.00025573,2]
[392139246,1761204639284,-500.0,0.00025573,2]
[392139247,1761204639293,-238.00671648,0.00025573,2]
[392139248,1761204639302,-506.49711162,0.00025573,2]
[392139249,1761204639312,-500.0,0.00025573,2]
[392139250,1761204639321,-500.0,0.00025573,2]
[392139251,1761204639330,-500.0,0.00025573,2]
[392139252,1761204639339,-500.0,0.00025573,2]
[392139253,1761204639348,-501.37942001,0.00025573,2]
[392139254,1761204639358,-500.0,0.00025573,2]
[392139255,1761204639367,-500.0,0.00025573,2]
[392139256,1761204639376,-500.0,0.00025573,2]
[392139257,1761204639385,-500.0,0.00025573,2]
[392139258,1761204639394,-500.0,0.00025573,2]
[392139259,1761204639403,-500.0,0.00025573,2]
[392139260,1761204639412,-500.0,0.00025573,2]
[392139261,1761204639421,-540.80855646,0.00025573,2]
[392139262,1761204639430,-500.0,0.00025573,2]
[392139263,1761204639439,-500.0,0.00025573,2]
[392139264,1761204639448,-245.40932237,0.00025573,2]
[392139265,1761204639457,-500.0,0.00025573,2]
[392139266,1761204639467,-500.0,0.00025573,2]
[392139267,1761204639477,-500.0,0.00025573,2]
[392139268,1761204639486,-500.0,0.00025573,2]
[392139269,1761204639495,-500.0,0.00025573,2]
[392139270,1761204639504,-500.0,0.00025573,2]
[392139271,1761204639514,-500.0,0.00025573,2]
[392139272,1761204639524,-500.0,0.00025573,2]
[392139273,1761204639532,-150.0,0.00025591,2]
[392139274,1761204639541,-264.0,0.00025714,2]
[392139275,1761204639550,-151.24367576,0.0002576,2]
[392139276,1761204639559,-152.05170631,0.0002576,2]
[392139277,1761204639568,-151.44863145,0.0002576,2]
[392139278,1761204639578,-151.0,0.0002576,2]
[392139279,1761204639586,-151.6545119,0.0002576,2]
[392139280,1761204639595,-151.0,0.0002576,2]
[392139281,1761204639605,-151.0,0.0002576,2]
[392139282,1761204639614,-207.60724146,0.0002576,2]
[392139283,1761204639623,-500.0,0.0002576,2]
[392139284,1761204639631,-151.0,0.0002576,2]
[392139285,1761204639641,-285.13277577,0.0002576,2]
[392139286,1761204639650,-151.4256754,0.0002576,2]
[392139287,1761204639659,-3969.27,0.00025761,3]
[392139288,1761204639669,-175.364,0.00025766,2]
[392139289,1761204639678,-68230.6773949,0.00025771,2]
[392139290,1761204639687,-1135.99647781,0.00025771,2]
[392139291,1761204639696,-46493.9955285,0.00025781,2]
[392139292,1761204639705,-24579.86808631,0.000258,2]
[392139293,1761204639714,-500.0,0.00025811,2]
[392139294,1761204639723,-235.45000628,0.00025815,2]
[392139295,1761204639732,-155.0612733,0.00025815,2]
[392139296,1761204639740,-153.34858067,0.00025815,2]
[392139297,1761204639748,-501.69723786,0.00025815,2]
[392139298,1761204639756,-152.05100989,0.00025815,2]
[392139299,1761204639764,-160.0,0.00025917,2]
[392139300,1761204639773,-150.0,0.00025973,2]
[392139301,1761204639782,-151.0,0.00025974,2]
[392139302,1761204639791,-151.0,0.00025974,2]
[392139303,1761204639800,-151.0,0.00025974,2]
[392139304,1761204639814,-151.0,0.00025974,2]
[392139305,1761204639823,-151.0,0.00025974,2]
[392139306,1761204639832,-151.0,0.00025974,2]
[392139307,1761204639842,-253.36467973,0.00025974,2]
[392139308,1761204639851,-204692.032185,0.0002598,2]
[392139309,1761204639860,-3407.98943343,0.0002598,2]
[392139310,1761204639869,-431.7062107,0.00026,2]
[392139311,1761204639879,-50054.03829915,0.00026,30]
[392139312,1761204639888,-327.0,0.00026006,2]
[392139313,1761204639898,-516.90300163,0.00026068,2]
[392139314,1761204639907,-503.51929018,0.00026068,2]
[392139315,1761204639916,-1006.88378789,0.00026068,2]
[392139316,1761204639926,-266.40070021,0.00026068,2]
[392139317,1761204639935,-1500.0,0.00026068,2]
[392139318,1761204639944,-1219.33073743,0.00026068,2]
[392139319,1761204639954,-543.35438512,0.00026068,2]
[392139320,1761204639964,-1500.0,0.00026068,2]
[392139321,1761204639975,-1500.0,0.00026068,2]
[392139322,1761204639986,-504.63864446,0.00026068,2]
[392139323,1761204639996,-1500.0,0.00026068,2]
[392139324,1761204640006,-1500.0,0.00026068,2]
[392139325,1761204640015,-1500.0,0.00026068,2]
[392139326,1761204640025,-1500.0,0.00026068,2]
[392139327,1761204640034,-514.79798091,0.00026068,2]
[392139328,1761204640043,-501.87193294,0.00026068,2]
[392139329,1761204640053,-1016.31826837,0.00026068,2]
[392139330,1761204640150,-420.39075837,0.00026068,2]
[392139331,1761204640161,-1500.0,0.00026068,2]
[392139332,1761204640171,-1120.84023224,0.00026068,2]
[392139333,1761204640180,-1500.0,0.00026068,2]
[392139334,1761204640189,-500.0,0.00026085,2]
[392139335,1761204640200,-1000.0,0.00026121,2]
[392139338,1761204640210,-767.91631659,0.00026121,2]
[392139340,1761204640219,-1000.0,0.00026121,2]
[392139342,1761204640229,-1000.0,0.00026121,2]
[392139344,1761204640238,-1000.0,0.00026121,2]
[392139346,1761204640248,-1040.62295601,0.00026121,2]
[392139347,1761204640257,-1000.0,0.00026121,2]
[392139348,1761204640267,-1000.0,0.00026121,2]
[392139349,1761204640276,-175.66923406,0.00026121,2]
[392139351,1761204640286,-500.0,0.00026121,2]
[392139353,1761204640296,-1000.0,0.00026121,2]
[392139355,1761204640305,-1000.0,0.00026121,2]
[392139357,1761204640315,-1000.0,0.00026121,2]
[392139359,1761204640325,-1000.0,0.00026121,2]
[392139361,1761204640335,-1032.65157223,0.00026121,2]
[392139362,1761204640344,-1000.0,0.00026121,2]
[392139363,1761204640355,-1000.0,0.00026121,2]
[392139364,1761204640365,-1000.0,0.00026121,2]
[392139365,1761204640374,-1000.0,0.00026121,2]
[392139366,1761204640384,-1000.0,0.00026121,2]
[392139367,1761204640394,-1000.0,0.00026121,2]
[392139368,1761204640405,-1000.0,0.00026121,2]
[392139369,1761204640414,-1000.0,0.00026121,2]
[392139370,1761204640424,-1000.0,0.00026121,2]
[392139371,1761204640436,-505.56177251,0.00026121,2]
[392139372,1761204640445,-1000.0,0.00026121,2]
[392139373,1761204640455,-1000.0,0.00026121,2]
[392139375,1761204640463,-301.41602783,0.00026142,2]
[392139377,1761204640473,-192.98486365,0.0002616,2]
[392139378,1761204640484,-420.0,0.00026176,2]
[392139379,1761204640494,-420.0,0.00026176,2]
[392139380,1761204640503,-420.0,0.00026176,2]
[392139381,1761204640512,-420.0,0.00026176,2]
[392139382,1761204640521,-1135.99647781,0.00026208,2]
[392139383,1761204640530,-4616.45621853,0.00026218,2]
[392139384,1761204640540,-1680.0,0.00026295,2]
[392139385,1761204640549,-387.0,0.00026305,2]
[392139386,1761204640560,-500.0,0.00026359,2]
[392139387,1761204640569,-1158.92,0.0002636,3]
[392139388,1761204640579,-579.46,0.0002636,3]
[392139390,1761204640588,-260.0,0.00026465,2]
[392139391,1761204640597,-250.0,0.00026521,2]
[392139393,1761204640607,-693.49122843,0.00026616,2]
[392139394,1761204640616,-1011.99282843,0.00026616,2]
[392139395,1761204640625,-513.917097,0.00026616,2]
[392139396,1761204640634,-2000.0,0.00026616,2]
[392139397,1761204640643,-2000.0,0.00026616,2]
[392139398,1761204640651,-2000.0,0.00026616,2]
[392139399,1761204640660,-2000.0,0.00026616,2]
[392139400,1761204640670,-2000.0,0.00026616,2]
[392139401,1761204640679,-2000.0,0.00026616,2]
[392139402,1761204640689,-500.0,0.00026633,2]
[392139403,1761204640698,-1548.97049182,0.00026668,2]
[392139404,1761204640708,-1500.0,0.00026668,2]
[392139405,1761204640718,-1500.0,0.00026668,2]
[392139406,1761204640727,-1500.0,0.00026668,2]
[392139407,1761204640736,-1500.0,0.00026668,2]
[392139408,1761204640745,-1500.0,0.00026668,2]
[392139409,1761204640754,-1007.10721589,0.00026668,2]
[392139410,1761204640763,-1500.0,0.00026668,2]
[392139411,1761204640772,-1500.0,0.00026668,2]
[392139412,1761204640782,-259.65550282,0.00026668,2]
[392139413,1761204640791,-1500.0,0.00026668,2]
[392139414,1761204640799,-1500.0,0.00026668,2]
[392139415,1761204640813,-401.45599235,0.00026668,2]
[392139416,1761204640822,-916.93481961,0.00026668,2]
[392139417,1761204640831,-1500.0,0.00026668,2]
[392139418,1761204640841,-1500.0,0.00026668,2]
[392139419,1761204640851,-1314.99357863,0.00026668,2]
[392139420,1761204640860,-1006.90143914,0.00026668,2]
[392139421,1761204640869,-1500.0,0.00026668,2]
[392139422,1761204640878,-536.80750785,0.00026668,2]
[392139423,1761204640890,-1500.0,0.00026668,2]
[392139424,1761204640899,-27641.75,0.000268,7]
[392139425,1761204640908,-1135.99647781,0.00026858,2]
[392139426,1761204640918,-4635.66,0.00026871,3]
[392139427,1761204640928,-2317.82,0.00026871,3]
[392139428,1761204640937,-500.0,0.00026907,2]
[392139429,1761204640947,-4616.45621852,0.0002698,2]
[392139430,1761204640955,-5975.9595866,0.00027,2]
[392139431,1761204640965,-2519.49584183,0.00027,5]
[392139432,1761204640974,-23267.45640119,0.00027,2]
[392139433,1761204640984,-360.0,0.00027013,2]
[392139434,1761204640993,-1680.0,0.00027053,2]
[392139435,1761204641003,-350.0,0.00027068,2]
[392139436,1761204641012,-178.63746848,0.00027073,2]
[392139437,1761204641021,-7938.54,0.00027131,3]
[392139438,1761204641030,-1135.99647781,0.00027154,2]
[392139439,1761204641039,-2500.0,0.00027164,2]
[392139440,1761204641048,-2500.0,0.00027164,2]
[392139441,1761204641057,-2500.0,0.00027164,2]
[392139442,1761204641067,-2500.0,0.00027164,2]
[392139443,1761204641077,-2500.0,0.00027164,2]
[392139444,1761204641086,-2500.0,0.00027164,2]
[392139445,1761204641095,-500.0,0.00027173,2]
[392139446,1761204641104,-500.0,0.00027173,2]
[392139447,1761204641112,-500.0,0.00027173,2]
[392139448,1761204641121,-162.22795496,0.00027173,2]
[392139449,1761204641130,-400.39648071,0.00027173,2]
[392139450,1761204641139,-500.0,0.00027173,2]
[392139451,1761204641148,-398.53405941,0.00027173,2]
[392139452,1761204641157,-500.0,0.00027181,2]
[392139453,1761204641166,-2000.0,0.00027216,2]
[392139454,1761204641175,-1001.73134156,0.00027216,2]
[392139455,1761204641184,-2000.0,0.00027216,2]
[392139456,1761204641193,-2000.0,0.00027216,2]
[392139457,1761204641203,-2000.0,0.00027216,2]
[392139458,1761204641213,-2000.0,0.00027216,2]
[392139459,1761204641223,-2000.0,0.00027216,2]
[392139460,1761204641232,-2011.02351199,0.00027216,2]
[392139461,1761204641242,-505.13968445,0.00027216,2]
[392139462,1761204641252,-2000.0,0.00027216,2]
[392139463,1761204641261,-2143.57706753,0.00027216,2]
[392139464,1761204641270,-1500.0,0.00027216,2]
[392139465,1761204641279,-216.94131255,0.00027216,2]
[392139466,1761204641289,-666.0,0.00027274,2]
[392139467,1761204641298,-250.35477822,0.0002739,2]
[392139468,1761204641307,-500.0,0.00027397,2]
[392139469,1761204641316,-500.0,0.00027397,2]
[392139470,1761204641326,-500.0,0.00027397,2]
[392139471,1761204641334,-500.0,0.00027397,2]
[392139472,1761204641343,-500.0,0.00027397,2]
[392139473,1761204641352,-500.0,0.00027397,2]
[392139474,1761204641361,-500.0,0.00027397,2]
[392139475,1761204641370,-500.0,0.00027397,2]
[392139476,1761204641379,-500.0,0.00027397,2]
[392139477,1761204641389,-500.0,0.00027397,2]
[392139478,1761204641398,-500.0,0.00027397,2]
[392139479,1761204641407,-500.0,0.00027397,2]
[392139480,1761204641416,-500.0,0.00027397,2]
[392139481,1761204641425,-500.0,0.00027397,2]
[392139482,1761204641435,-500.0,0.00027397,2]
[392139483,1761204641443,-500.0,0.00027397,2]
[392139484,1761204641452,-500.0,0.00027397,2]
[392139485,1761204641461,-500.0,0.00027397,2]
[392139486,1761204641470,-500.0,0.00027397,2]
[392139487,1761204641480,-310.9725419,0.00027397,2]
[392139488,1761204641489,-500.0,0.00027397,2]
[392139489,1761204641498,-500.0,0.00027397,2]
[392139490,1761204641508,-500.0,0.00027397,2]
[392139491,1761204641517,-500.0,0.00027397,2]
[392139492,1761204641526,-500.0,0.00027397,5]
[392139493,1761204641535,-684.17,0.000274,7]
[392139494,1761204641544,-500.0,0.00027455,2]